Cogmind - Beta 12 @@@ ROGUE MODE // 2023.03.04 @ 19:04:00 Player: Red Box Result: Destroyed by D-53 Grenadier with Mini Grenade Launcher Performance ------------- Evolutions (0) 0 Regions Visited (4) 800 Robots Destroyed (20) 100 Value Destroyed (341) 341 Prototype IDs (0) 0 Alien Tech Used (0) 0 Bonus (7) 7 TOTAL SCORE: 1248 Bonus ------- Follower Combat Kills 7 Cogmind --------- Core Integrity 0/250 Matter 300/300 Energy 290/290 System Corruption 1% Temperature Cool (0) Movement Rolling (115) Ox1 Location -9/Mines Parts ------- > --- POWER (1) -------- Improved Deuterium Engine > --- PROPULSION (2) --- Compact Wheel > --- UTILITY (2) ------ Large Storage Unit > --- WEAPON (2) ------- (None) > --- INVENTORY (15) --- Ion Engine Reinforced Deuterium Engine Compact Wheel Improved Heat Sink Coolant Injector High-capacity Battery (250) Core Analyzer Authchip [Device] Improved Trap Extractor (0/6) Gatling Laser Light EM Pulse Cannon Heavy Ion Cannon Heavy Ion Cannon Grenade Launcher Makeshift Spear Peak State ------------ > --- POWER ------------ Improved Deuterium Engine > --- PROPULSION ------- Compact Wheel Compact Wheel > --- UTILITY ---------- Large Storage Unit Light Armor Plating > --- WEAPON ----------- EM Pulse Gun EM Pulse Gun > --- INVENTORY -------- Ion Engine Reinforced Deuterium Engine Compact Wheel Improved Heat Sink Coolant Injector High-capacity Battery Core Analyzer Authchip [Device] Gatling Laser Light EM Pulse Cannon Heavy Ion Cannon Heavy Ion Cannon Grenade Launcher Makeshift Spear [Rating: 14] Favorites ----------- Power Ion Engine Engine Ion Engine Propulsion Compact Wheel Leg Aluminum Leg Wheel Compact Wheel Utility Large Storage Unit Device Improved Terrain Scanner Storage Large Storage Unit Protection Weapon Shielding Weapon EM Pulse Gun Energy Gun EM Pulse Gun Launcher Grenade Launcher Slashing Weapon Mining Claw Build | -11 -10 -10 -10 -9 ------- Run | Jun Mat Min Exi Min Slots Evolved . | . . . . . Power . | . . . . . Propulsion . | . . . . . Utility . | . . . . . Weapon . | . . . . . Parts Attached 26 | 10 7 3 3 3 Power 2 | 1 . . . 1 Engine 2 | 1 . . . 1 Core . | . . . . . Reactor . | . . . . . Propulsion 8 | 5 2 . . 1 Treads . | . . . . . Leg 2 | 2 . . . . Wheel 6 | 3 2 . . 1 Hover . | . . . . . Flight . | . . . . . Utility 6 | 2 2 . 1 1 Device 1 | 1 . . . . Storage 3 | 1 1 . 1 . Processor . | . . . . . Hackware . | . . . . . Protection 2 | . 1 . . 1 Artifact . | . . . . . Weapon 10 | 2 3 3 2 . Energy Gun 8 | 2 2 2 2 . Energy Cannon . | . . . . . Ballistic Gun . | . . . . . Ballistic Cannon . | . . . . . Launcher 1 | . . 1 . . Special Weapon . | . . . . . Impact Weapon . | . . . . . Slashing Weapon 1 | . 1 . . . Piercing Weapon . | . . . . . Special Melee Weapon . | . . . . . Unidentified Prototypes . | . . . . . Parts Lost 6 | . 1 1 . 4 Power . | . . . . . Propulsion 1 | . . . . 1 Utility 2 | . 1 . . 1 Weapon 3 | . . 1 . 2 Highest Loss Streak 4 | . 1 1 . 4 To Critical Strikes . | . . . . . Average Slot Usage (%) 92 | . 95 100 75 90 Engine 14 | . 14 14 14 14 Wheel 27 | . 28 28 28 27 Device 1 | . 4 . . . Storage 14 | . 14 14 14 14 Protection 9 | . 5 14 14 7 Energy Gun 22 | . 27 24 4 25 Slashing Weapon 1 | . . 3 . . Naked Turns . | . . . . . Heaviest Build 37 | 15 30 31 30 37 Greatest Support 32 | 26 32 32 32 32 Greatest Overweight (x) 2 | 2 1 . . 1 Average Overweight (x) . | . . . . . Largest Inventory Capacity 15 | 8 15 15 15 15 Average Capacity 14 | 7 14 15 15 15 Most Carried 15 | 8 15 15 15 15 Average Carried 12 | 6 10 13 14 14 Final Capacity 15 | 8 15 15 15 15 Final Carried 15 | 8 14 14 15 15 Class Distribution -------------------- 100% | Mutant Dominant Class ---------------- Mutant | -10/Materials Mutant | -10/Mines Mutant | -10/Exiles Mutant | -9/Mines Resources | -11 -10 -10 -10 -9 ----------- Run | Jun Mat Min Exi Min Matter Collected 516 | 300 49 98 . 69 Remotely . | . . . . . Salvage Created 605 | 123 153 144 . 185 Parts 43 | 12 9 13 . 9 Haulers Intercepted . | . . . . . Recyclers Shooed . | . . . . . Parts Field Recycled . | . . . . . Retrieved Matter . | . . . . . Parts Self-Destructed . | . . . . . Prevented . | . . . . . Kills | -11 -10 -10 -10 -9 ------- Run | Jun Mat Min Exi Min Combat Hostiles Destroyed 14 | . 3 8 . 3 Guns 10 | . 3 4 . 3 AOE 4 | . . 4 . . Classes Destroyed 6 | 2 2 1 . 1 Tunneler 3 | 3 . . . . Recycler 3 | 1 . . . 2 Watcher 1 | . 1 . . . Swarmer 8 | . . 6 . 2 Grunt 5 | . 3 2 . . Assembled 1 | . . . . 1 Best Kill Streak 4 | 2 2 4 . 2 Combat Bots Only 4 | . 2 4 . 2 Max Kills in Single Turn 2 | 1 1 2 . 1 Gunslinging . | . . . . . Exploded 2 | . . 2 . . Melee . | . . . . . Uniques/NPCs Destroyed . | . . . . . Combat | -11 -10 -10 -10 -9 -------- Run | Jun Mat Min Exi Min Damage Taken 805 | . 139 270 . 396 Core 261 | . 39 76 . 146 Absorbed by Shields . | . . . . . Redirected to Shielding 35 | . . 35 . . Core Remaining (%) 100 | 100 . . . . Volleys Fired 41 | 5 15 15 . 6 Largest 2 | 2 2 2 . 2 Hottest 100 | 100 100 80 . 80 Shots Fired 79 | 10 30 27 . 12 Gun 77 | 10 30 25 . 12 Cannon . | . . . . . Launcher 2 | . . 2 . . Special . | . . . . . Kinetic . | . . . . . Thermal 40 | 10 30 . . . Explosive 2 | . . 2 . . Electromagnetic 37 | . . 25 . 12 Robot Hit Streak 7 | 4 7 4 . 6 Robot Miss Streak 3 | 2 3 2 . 1 Penetration Max . | . . . . . Secondary Targets 1 | . . . . 1 Max Gunslinging Chain 1 | . . . . 1 Shots Hit Robots 46 | 7 18 14 . 7 Core Hits 32 | 5 10 11 . 6 Critical Kills . | . . . . . Critical Parts Destroyed . | . . . . . Critical Strikes 3 | . 3 . . . Burn 3 | . 3 . . . Melee Attacks 3 | . 3 . . . Impact . | . . . . . Slashing 3 | . 3 . . . Piercing . | . . . . . Sneak Attacks . | . . . . . Combat Hostiles . | . . . . . Follow-up Attacks . | . . . . . Damage Inflicted 825 | 87 238 403 . 97 Guns 584 | 87 238 162 . 97 Cannons . | . . . . . Explosions 241 | . . 241 . . Melee . | . . . . . Ramming . | . . . . . Kinetic . | . . . . . Thermal 355 | 87 238 30 . . Explosive 211 | . . 211 . . Electromagnetic 259 | . . 162 . 97 Impact . | . . . . . Slashing . | . . . . . Piercing . | . . . . . Highest Corruption 1 | . 1 1 1 1 Average Corruption 1 | . 1 1 1 1 Corruption Purged . | . . . . . Corruption Blocked . | . . . . . Effects 13 | . 3 7 2 1 Message Errors 3 | . 1 2 . . Matter Fused 5 | . 1 4 . . Energy Discharges 1 | . . . 1 . Data Loss (minor) 2 | . 1 . 1 . Data Loss (major) 1 | . . . . 1 Weapon Failures 1 | . . 1 . . Overload Shots . | . . . . . Overflow Damage 2 | . . 2 . . Projectiles . | . . . . . Explosions 2 | . . 2 . . Melee . | . . . . . Knockbacks . | . . . . . Impact . | . . . . . Kinetic . | . . . . . Secondary . | . . . . . Self-Inflicted Damage 68 | . . 68 . . Shots 3 | . . 3 . . Rammed . | . . . . . Targets Rammed . | . . . . . Kicked . | . . . . . Crushed . | . . . . . Highest Temperature 219 | 78 219 90 . 66 Average Temperature 52 | 29 78 42 . 22 Received Heat Transfer 120 | . 66 54 . . Siege Activations . | . . . . . Robots Corrupted . | . . . . . Combat Hostiles . | . . . . . Parts Fried . | . . . . . Impact Corruptions . | . . . . . Robots Melted . | . . . . . Combat Hostiles . | . . . . . Parts Melted 3 | . 3 . . . Heat Transferred 1234 | 259 925 50 . . Parts Sabotaged . | . . . . . Parts Stolen . | . . . . . Parts Stripped . | . . . . . Power Chain Reactions 1 | . . 1 . . Missiles Intercepted . | . . . . . Alert | -11 -10 -10 -10 -9 ------- Run | Jun Mat Min Exi Min Peak Influence 231 | 20 95 231 . 84 Initial 13 | . 13 6 . . Average 46 | 8 56 52 . 21 Maximum Alert Level 1 | . . 1 . . Low Security (%) 98 | 100 100 96 . 100 Level 1 1 | . . 3 . . Level 2 . | . . . . . Level 3 . | . . . . . Level 4 . | . . . . . Level 5 . | . . . . . High Security . | . . . . . Max Security . | . . . . . Squads Dispatched 1 | . 1 . . . Investigation 1 | . 1 . . . Extermination . | . . . . . Reinforcement . | . . . . . Assault . | . . . . . Garrison . | . . . . . Intercept . | . . . . . Searches Triggered . | . . . . . Construction Impeded . | . . . . . Haulers Reinforced . | . . . . . Active Scanning Responses . | . . . . . Cargo Convoy Interrupts . | . . . . . Stealth | -11 -10 -10 -10 -9 --------- Run | Jun Mat Min Exi Min Distress Signals 1 | . 1 . . . Communications Jammed . | . . . . . Distress Signals . | . . . . . Times Spotted 42 | . 9 10 . 23 Peak Tracking Total 20 | . 3 4 . 20 Tactical Retreats 3 | . 1 2 . . Traps | -11 -10 -10 -10 -9 ------- Run | Jun Mat Min Exi Min Traps Triggered 3 | . 2 . . 1 Indirectly . | . . . . . Trap Hack Attempts . | . . . . . Triggered . | . . . . . Disarmed . | . . . . . Reprogrammed . | . . . . . Reused . | . . . . . Traps Extracted . | . . . . . Installed . | . . . . . Triggered . | . . . . . Machines | -11 -10 -10 -10 -9 ---------- Run | Jun Mat Min Exi Min Machines Disabled 1 | . . 1 . . Max in Single Turn 1 | . . 1 . . Machines Repaired . | . . . . . Machines Sabotaged . | . . . . . Overloaded Fab Kills . | . . . . . Hacking | -11 -10 -10 -10 -9 --------- Run | Jun Mat Min Exi Min Machines Accessed 8 | . 6 . . 2 Terminals 5 | . 4 . . 1 Fabricators . | . . . . . Repair Stations . | . . . . . Recycling Units 2 | . 2 . . . Scanalyzers . | . . . . . Garrison Access . | . . . . . Total Hacks 21 | . 19 . . 2 Successful 11 | . 10 . . 1 Failed 9 | . 8 . . 1 Catastrophic 1 | . . . . 1 Database Lockouts 1 | . 1 . . . Manual 12 | . 11 . . 1 Terminals 17 | . 16 . . 1 Fabricators . | . . . . . Repair Stations . | . . . . . Recycling Units 3 | . 3 . . . Scanalyzers . | . . . . . Garrison Access . | . . . . . Terminal Hacks 5 | . 4 . . 1 Robot Analysis 2 | . 2 . . . Open Door 1 | . . . . 1 Locate Traps 1 | . 1 . . . Registered Components 1 | . 1 . . . Fabricator Hacks . | . . . . . Repair Station Hacks . | . . . . . Recycling Unit Hacks 1 | . 1 . . . Retrieve Components 1 | . 1 . . . Scanalyzer . | . . . . . Garrison Access Hacks . | . . . . . Unauthorized Hacks 5 | . 5 . . . Terminals 5 | . 5 . . . Track 1 | . 1 . . . Botnet 3 | . 3 . . . Operators 1 | . 1 . . . Fabricators . | . . . . . Repair Stations . | . . . . . Recycling Units . | . . . . . Scanalyzers . | . . . . . Garrison Access . | . . . . . Data Cores Recovered . | . . . . . Used . | . . . . . Hacking Detections 6 | . 5 . . 1 Full Trace Events . | . . . . . Feedback Events . | . . . . . Feedback Blocked . | . . . . . Robot Schematics Acquired . | . . . . . Robots Built . | . . . . . Authchips . | . . . . . Time . | . . . . . Total Robot Build Rating . | . . . . . Part Schematics Acquired . | . . . . . Parts Built . | . . . . . Authchips . | . . . . . Time . | . . . . . Total Part Build Rating . | . . . . . Parts Repaired . | . . . . . Time . | . . . . . Parts Recycled . | . . . . . Recycled Matter . | . . . . . Retrieved Matter . | . . . . . Retrieved Components 3 | . 3 . . . Parts Scanalyzed . | . . . . . Part Schematics Acquired . | . . . . . Parts Damaged . | . . . . . Bothacking | -11 -10 -10 -10 -9 ------------ Run | Jun Mat Min Exi Min Used RIF Installer . | . . . . . Robots Hacked . | . . . . . Non-combat . | . . . . . Combat . | . . . . . Robot Hacks Applied . | . . . . . Relay Couplers Released . | . . . . . Fabnet Peak Effective % . | . . . . . Robots Rewired . | . . . . . Allies Hacked . | . . . . . Hacks Repelled . | . . . . . Allies | -11 -10 -10 -10 -9 -------- Run | Jun Mat Min Exi Min Total Allies 1 | . . . . 1 Largest Group 1 | . . . . 1 Highest-Rated Group 31 | . . . . 31 Highest-Rated Ally 31 | . . . . 31 Total Orders . | . . . . . Ally Attacks 5 | . . . . 5 Total Damage 43 | . . . . 43 Kills 1 | . . . . 1 Allies Corrupted . | . . . . . Allies Melted . | . . . . . Intel | -11 -10 -10 -10 -9 ------- Run | Jun Mat Min Exi Min Robot Analysis Total 2 | . 2 . . . Derelict Logs Recovered 2 | . . 1 . 1 Drone Launches . | . . . . . Drone Recoveries . | . . . . . Exploration | -11 -10 -10 -10 -9 ------------- Run | Jun Mat Min Exi Min Turns Passed 2179 | 120 860 562 381 256 Spaces Moved 1835 | 83 699 495 376 182 Core 15 | 15 . . . . Treads . | . . . . . Legs 23 | 23 . . . . Wheels 1797 | 45 699 495 376 182 Hover . | . . . . . Flight . | . . . . . Fastest Speed 50 | 50 90 100 100 100 Average Speed 101 | 96 102 100 100 112 Slowest Speed 190 | 190 105 100 100 115 Overloaded Moves . | . . . . . Propulsion Burnouts . | . . . . . Robots Hopped . | . . . . . Cave-ins Triggered . | . . . . . Exploration Rate (%) 61 | 6 99 99 67 34 Regions Visited 4 Branch Regions 3 Pre-discovered Areas 1 | . . 1 . . Known Exits Taken . | . . . . . Unknown Exits Taken 4 | 1 1 1 1 . Scrap Searched 2 | . . 1 . 1 Spaces Dug 1 | . 1 . . . Terrain Destroyed 26 | . 1 25 . . Melee 1 | . 1 . . . Projectile . | . . . . . AOE 25 | . . 25 . . Terrain Rammed . | . . . . . Walls Destroyed . | . . . . . Machines Disabled . | . . . . . Actions | -11 -10 -10 -10 -9 --------- Run | Jun Mat Min Exi Min Total 2059 | 109 809 534 382 225 Wait 105 | . 67 17 . 21 Move 1831 | 82 698 494 375 182 Hop . | . . . . . Pick Up 31 | 9 12 3 1 6 Fast Attach 12 | 9 1 . 1 1 Attach 5 | . 2 1 1 1 Detach 1 | . . . 1 . Swap 9 | 1 4 2 1 1 Drop 21 | 3 7 2 2 7 Fire 41 | 5 15 15 . 6 Melee 3 | . 3 . . . Ram . | . . . . . Kick . | . . . . . Crush . | . . . . . Escape Stasis . | . . . . . Rewire . | . . . . . Trap . | . . . . . Miscellaneous . | . . . . . Route ------- -11/Junkyard -10/Materials (discovered 5 exits: [*Mat x3] / [*Min x2]) -10/Mines (discovered 3 exits: [*Mat x2] / [*Exi]) -10/Exiles -9/Mines (discovered 1 exit: [*Mat]) History --------- Turn | Location | Event 5 | -11/Junkyard | Discovered new exit (range 15) 121 | -11/Junkyard | Entered Materials 185 | -10/Materials | Discovered new exit (range 16) 273 | -10/Materials | Discovered new exit (range 16) 301 | -10/Materials | Build established: Mutant 413 | -10/Materials | Discovered new exit (range 15) 587 | -10/Materials | Discovered new exit (range 16) 754 | -10/Materials | Discovered new exit (range 10) 861 | -10/Materials | Central database locked down 981 | -10/Materials | Entered Mines 1123 | -10/Mines | Deemed a non-threat by the Exiles lab entrance 1123 | -10/Mines | Discovered new exit (range 5) 1148 | -10/Mines | Discovered new exit (range 6) 1231 | -10/Mines | Discovered new exit (range 10) 1326 | -10/Mines | A weapon hastily lodged in a ceiling crevice suddenly fell to the ground 1333 | -10/Mines | Learned location of Zion (-6) 1543 | -10/Mines | Entered Exiles 1571 | -10/Exiles | Met 8R-AWN 1580 | -10/Exiles | Discovered new exit (range 14) 1613 | -10/Exiles | Met EX-HEX 1645 | -10/Exiles | Met EX-BIN 1659 | -10/Exiles | Met EX-DEC 1737 | -10/Exiles | Visited The Gauntlet 1924 | -10/Exiles | Entered Mines 1944 | -9/Mines | Met a Derelict who couldn't figure out how to use a Trap Extractor 1953 | -9/Mines | Learned Materials stockpile data 2035 | -9/Mines | Received a Mining Laser from a helpful Derelict 2115 | -9/Mines | Discovered new exit (range 6) 2145 | -9/Mines | Assembled infested the area 2150 | -9/Mines | Assisted by a Guerilla fighting off Assembled 2165 | -9/Mines | Core integrity fell below 50% 2169 | -9/Mines | Core integrity fell below 20% 2180 | -9/Mines | Destroyed by D-53 Grenadier with Mini Grenade Launcher Last Messages --------------- 02157_ as-86002 destroyed. 02158_ as-75638 destroyed. 02158_ Switching to secondary target: as-53594. 02159_ as-53594 destroyed. 02159_ as-31422 destroyed. 02159_ as-35940 destroyed. 02159_ as-94997 destroyed. 02161_ as-66327 destroyed. 02161_ as-03469 destroyed. 02161_ as-62083 destroyed. 02161_ as-96693 destroyed. 02162_ K-01 Serf collects debris. 02165_ EM Pulse Gun destroyed. 02165_ K-01 Serf collects debris. 02169_ The unstable cave ceiling collapses. 02170_ K-01 Serf collects debris. 02173_ The unstable cave ceiling collapses. 02175_ U-05 Engineer destroyed. 02179_ Com. Wheel destroyed. 02179_ Lgt. Armor Plating destroyed. Map ----- +----------------------------------------------------+ | ????????????????????????????????????????????????? | | ????????????????????????????????????????????????? | | ????????????????????????????????????????????????? | | ????????????????????????????????????????????????? | | ????????????????????????????????????????????????? | | ????????????????????????????????????????????????? | | ????????????????????????????????????????????????? | | ????????????????????? ## ??????????????????????? | | ???????????????????? ??????????????????????? | | ???????????????????? ??????????????????????? | | ???????????????????? ??????????????????????? | | ????????????????????# ??????????????????????? | | ???????????????????## ??????????????????????? | | ???????????????????# ???????????????????????? | | ???????????????????? ???????????????????????? | | ???????????????????? ???????????????????????? | | ????????????????????# ???????????????????????? | | ????????????????????# ??????????????##???????? | | ????????????????????# ?????????????? ???????? | | ????????????????????# ##????????????? ???????? | | ????????????????????# ##???????????? #???????? | | ????????????????????# % #???????????# #???????? | | ????????????????????# = ###??????????# #???????? | | ????????????????????# ##?????????# #???????? | | ????????????????????# #?????????# #???????? | | ???????????????????## d@ #?????????# #???????? | | ???????????????????# #????????## ###?????? | | ??????????????????### #???????## !%##????? | | ??????????????????# #???????# [!]#????? | | ??????????????????## d ##??????# ###### | | ???????????????????# # ##?????# # | | ???????????????????# #?????## # | | ???????????????????# #??????# ######## # | | ???????????????????## #?##### #??????# # | | ??????????????????## # #??????# | | ?????????????? ### # #########??## | | ????????????? #?# #???## | | ????????????? ! "#?# """ #????# | | ????????????? = # %#?# """ #????# | | ????????????? ## = #*#?# """ #????# | | ?????????????## ##?## =###%=% #????# | | ??????????????####???# % #%%*[=[< #????# | | ????????????????????# ######%= #????? | | ????????????????????# ##????# #????? | | ???????????????????? ###?????###T###????? | | ?????????????????? % ##??????????##??????? | | ????????????????? #????????????????????? | | ???????????????? ?????????????????????? | | ???????????????? ### ?????????????????????? | | ????????????????? ???## ?????????????????????? | +----------------------------------------------------+ Best States ------------- Heat Dissipation 25 Energy Generation 16 Energy Capacity 290 Matter Stores 300 Matter Capacity 300 Sight Range 16 Terrain Scan Range 16 Terrain Scan Density 10 Armor Coverage 150 Weapon Shielding 33 Evasion (%) 50 Authchip Count 1 Item Schematics ----------------- None Robot Schematics ------------------ None Fabricated ------------ Nothing Alien Tech Used ----------------- None Achievements -------------- None Challenges ------------ None Game ------ Seed AerolevTerrabombCannon Manual? 0 Play Time 00:16:18 Cumulative 524.0 hours Start 2023.03.04 @ 18:44:38 End 2023.03.04 @ 19:04:00 Sessions 1 Manual Loads 0 Difficulty Rogue Special Mode None Game No. 374 Rogue 374 Adventurer 0 Explorer 0 Win Type - Total 1 Types 1/0/0/0/0/0/0/0/0 Lore% 69 Gallery% 77 Achievement% 58 Wizard Run 0 Options --------- ASCII 0 Keyboard 0 Movement Mouse Keybinds 0 Fullscreen 1 Font 16/SmallcapsGlow Map View 75x55 Tactical HUD 1 Map Filters NONE Filters NONE Steam 1 RUN: 1210ee03-a18a-4d95-ae48-e0df33296d2a